{"text_format":"3","workbook":"xlsx","n_sheets":2,"sheets":["2025年校招就业岗位表","Sheet1"],"not_rendered":{"defined_names":2},"read":"whole","date_system":"1900"}

{"sheet":"2025年校招就业岗位表","index":0,"n_rows":95,"n_cols":9,"rows_kept":95,"merged":[[0,0,0,8],[1,0,2,0],[1,1,2,1],[1,2,2,2],[1,3,2,3],[1,4,2,4],[1,5,1,7],[1,8,2,8],[94,0,94,3]]}
["广西农村投资集团有限公司2025届校园招聘岗位需求表"]
["序号","招聘单位","招聘岗位","岗位描述","招聘人数","招聘条件",null,null,"工作地点"]
[{"$nulls":5},"学历","学位","专业"]
[1,"广西农投糖业集团股份有限公司","1.土建技术工程岗","负责项目报建、技术审核、施工现场管理相关工作",1,"硕士研究生","硕士","土木类","广西南宁"]
[2,"广西农投水务集团有限公司","2.行政管理岗","1.负责领导讲话、综合材料（文件）起草、撰写信息宣传工作；\n2.负责公文审核与流转，文电收发、编号、拟办、登记、传递；\n3.负责公司综合、大型会议的组织、材料准备工作，并做好会议记录、录音、资料整理及纪要等工作；\n4.负责为公司领导日常事务性工作做好协调服务，包括日常公务活动协调安排、临时性会议组织、外出调研安排等，完成领导交办的事项并跟踪落实反馈；\n5.负责督查督办工作，定期出具督办通报，对上级单位交办事项、公司会议重要决策及领导批办事项落实情况进行跟踪、督办、反馈和协调；\n6.完成领导交办的其他工作任务。",1,"硕士研究生","硕士","中国汉语言文学及文秘类、新闻传播学类","南宁市"]
[3,"广西农投水务集团有限公司","3.经营管理岗","1.负责草拟公司年度经营计划，收集及审核所属企业年度经营计划，制定与完善所属企业负责人经营业绩考核办法，编制经营业绩等组织绩效管理计划，绩效管理沟通工作，对所属企业经营指标任务分解、下达，建立细化指标及考核工作；\n2.负责监督所属企业年度计划的执行，汇总及审核公司和所属企业有关的经营数据资料，并编制统计报表，指导所属企业开展精细化管理等提质增效的经营管理工作；\n3.组织和指导所属企业开展亏损企业治理工作。",1,"硕士研究生","硕士","给排水科学与工程","广西南宁"]
[4,"广西农投水务集团有限公司","4.技术管理岗","1.协助部门主任做好水务板块工程项目技术管理，包括工程项目技术审查及审批、工程项目技术检查及监督、工程项目技术标准制定、处理工程施工中重大技术问题等；\n2.参与编写、审定重大工程的方案；\n3.研究并及时转发国家、省市、行业颁布的规范、标准、规程。",1,"硕士研究生","硕士","给排水科学与工程","广西南宁"]
[5,"广西农投新能源集团有限公司","5.智能信息管理岗","1.负责公司智能化电站建设、电力通信及信息通讯、信息自动化等技术工作；\n2.协助规划公司智能化发展方案，建立完整的信息化技术体系；\n3.编制信息化设备技术规程及规范，制定公司的有关技术标准，制订、指导、落实信息化设备、设施维修及维护方案。",1,"硕士研究生","硕士","电子信息工程、信息工程、网络工程、电气工程及其自动化、计算机网络工程、电气信息类","广西南宁"]
[6,"广西农投新能源集团有限公司","6.新能源综合管理岗","负责研究新能源项目方面的政策，协助制定公司新能源能源项目方案",1,"硕士研究生","硕士","能源工程与自动化、能源动力系统与自动化、能源动力学、电力系统及其自动化、能源动力类","广西南宁"]
[7,"广西农机服务集团有限公司（广西农业机械研究院有限公司）","7.战略发展综合事务岗","1.负责开展公司对外合作及板块产业协同工作；       \n2.承担公司拟投资项目的调研、论证，撰写调研报告，组织中介开展项目前期工作，协助开展工程建设项目管理工作；                            \n3.负责指导所属企业项目施工进度，项目建设制度管理；开展竣工验收管理等相关工作。",1,"硕士研究生","硕士","经济学类、金融学类、工程管理类、农业类、机械类","广西南宁"]
[8,"广西龙州北部湾现代农业有限公司","8.生产技术部研发专员","1.负责菌菇类食品的研发、提出研发方案；\n2.研究分析市场需求，把握市场动态，及时调整研发方向和策略。\n3参与跟踪研究新技术，掌握先进技术应用前沿动态；\n4.收集销售和生产等业务部门反馈的技术问题，与其他业务部门进行技术交流，解决技术问题。",1,"本科及以上","学士及以上","食品科学与工程类，植物生产、保护及草学类（菌物科学与工程）","广西龙州县/广西横州市"]
[9,"桂林爱明生态农业开发有限公司","9.品管研发部研发专员","1.制定农（副）产品精深加工研发计划，负责罐头类、速冻类食品的研发，提出研发方案；\n2.研究分析市场需求，把握市场动态，及时调整研发方向和策略。\n3参与跟踪研究新技术，掌握先进技术应用前沿动态；\n4.收集销售和生产等业务部门反馈的技术问题，与其他业务部门进行技术交流，解决技术问题。",1,"本科及以上","学士及以上","食品科学与工程类，植物生产、保护及草学类，工商管理类（食品经济管理）","广西荔浦市"]
[10,"博白县水利供水有限公司","10.会计岗","1.负责财务核算，审核报销的原始凭证、编制会计凭证、编制财务报表。                                                      \n2.按时向上级单位报送各类报表及财务数据资料。                       \n3.负责按时完成公司纳税申报业务，及时缴纳税金，做好会计档案整理保管工作。",1,"本科及以上","学士及以上","会计学类","博白县城"]
[11,"藤县水利供水有限公司","11.综合文秘岗","1.负责公司各种会议组织、公文处理、事务接待等日常工作；\n2.负责起草公司的公文、规章制度、会议纪要、大事记等综合性文字及校对工作，参与公司企业文化、精神文明宣传等工作；\n3.负责管理公司文书、档案整理工作。",1,"本科及以上","学士及以上","中国汉语言文学及文秘类、新闻传播学类","藤县县城"]
[12,"龙州县水利供水有限公司","12.综合文秘岗","1.负责公司各种会议组织、公文处理、事务接待等日常工作；\n2.负责起草公司的公文、规章制度、会议纪要、大事记等综合性文字及校对工作，参与公司企业文化、精神文明宣传等工作；\n3.负责管理公司文书、档案整理工作。",1,"本科及以上","学士及以上","中国汉语言文学及文秘类、新闻传播学类","龙州县县城"]
[13,"大新县水利供水有限公司","13.会计岗","1.负责财务核算，审核报销的原始凭证、编制会计凭证、编制财务报表；                                                   \n2.按时向上级单位报送各类报表及财务数据资料；                       \n3.负责按时完成公司纳税申报业务，及时缴纳税金，做好会计档案整理保管工作。",1,"本科及以上","学士及以上","会计学类","大新县县城"]
[14,"广西水利电业集团有限公司陆川发电分公司","14.会计岗","1.负责资产、费用核算，审核报销的原始凭证、编制会计凭证、编制财务报表；                                                      \n2.按时向上级单位报送各类报表及财务数据资料；                       \n3.负责按时完成公司纳税申报业务，及时缴纳税金，做好会计档案整理保管工作。",1,"本科及以上","学士及以上","会计学类","陆川县郊区"]
[15,"广西水利电业集团有限公司陆川发电分公司","15.综合文秘岗","1.负责公司各种会议组织、公文处理、事务接待等日常工作；\n2.负责起草公司的公文、规章制度、会议纪要、大事记等综合性文字及校对工作，参与公司企业文化、精神文明宣传等工作；\n3.负责管理公司文书、档案整理工作。",1,"本科及以上","学士及以上","中国汉语言文学及文秘类","陆川县郊区"]
[16,"陆川县水利供水（污水处理）有限公司","16.会计岗","1.负责会计记账，按月、季、年度编制会计报表；                                                      \n2.按时向上级单位报送各类报表及财务数据资料；                       \n3.负责按时完成公司纳税申报业务，及时缴纳税金，做好会计档案整理保管工作。",1,"本科及以上","学士及以上","会计学类","陆川县县城"]
[17,"陆川县水利供水（污水处理）有限公司","17.人力资源岗","1.根据公司劳动、人事、分配制度，按规定编制职工工资表，做好职工社保缴纳相关工作；\n2.负责劳动合同的管理，人员招聘和辞退工作，负责劳动纪律的检查考核，按规定管理员工请假、销假及考勤工作；\n3.负责员工人事档案管理工作，做好人事档案的整理、存档和归档。",1,"本科及以上","学士及以上","人力资源管理、会计类","陆川县县城"]
[18,"天峨县农投供水有限公司","18.综合文秘岗","1.负责公司各种会议组织、公文处理、事务接待等日常工作；\n2.负责起草公司的公文、规章制度、会议纪要、大事记等综合性文字及校对工作，参与公司企业文化、精神文明宣传等工作；\n3.负责管理公司文书、档案整理工作。",1,"本科及以上","学士及以上","中国汉语言文学及文秘类","天峨县县城"]
[19,"龙州片区-广西桂水电力股份有限公司龙州发电分公司","19.工程管理岗","1.负责各类工程项目的预算编制、成本控制、招投标及结算审核；\n2.负责工程量与造价，监控项目成本管理，参与招投标及合同管理。",1,"本科及以上","学士及以上","土木类","龙州县城"]
[20,"龙胜片区-广西桂水电力股份有限公司龙胜发电分公司","20.信息技术管理岗","1.负责公司信息化建设相关规划、设计工作，维护和管理公司内部的信息系统，如OA系统、ERP系统等；\n2.负责集控中心及智能化电站电力通信及信息通讯管理；负责信息系统、通用平台建设、运维和升级等各环节的标准规范；\n3.编制信息化设备技术规程及规范，制定公司的有关技术标准，制订、指导、落实信息化设备、设施维修及维护方案。",1,"本科及以上","学士及以上","计算机科学与技术类","龙胜县城"]
[21,"广西水利电业集团新疆克州水利发电有限公司","21.水电技术岗","1.负责水电站及大坝的水工建筑、隧洞引水工程等水工设施检查及维护管理、安全监测设备设施维护管理等工作；\n2.落实完成相关制度、资料的记录整理工作。",1,"本科及以上","学士及以上","水利水电工程、水利水电工程管理、水利水电建筑工程","新疆克州阿克陶县奥依塔克镇"]
[22,"荔浦片区-广西桂水电力股份有限公司荔浦发电分公司","22.会计岗","1.负责资产、负债核算，审核报销的原始凭证、编制会计凭证、编制财务报表；\n2.负责收入、支出、应交税金、应付职工薪酬核算；办理有关交纳各种税款、费用业务；\n3.负责办理与财务有关的证件业务；负责配合上级部门有关税务、财务、审计的审查。",1,"本科及以上","学士及以上","会计学类","荔浦市区"]
[23,"西林片区-广西桂水电力股份有限公司西林发电分公司","23.信息技术管理岗","1.负责公司信息化建设相关规划、设计工作，维护和管理公司内部的信息系统，如OA系统、ERP系统等；\n2.负责集控中心及智能化电站电力通信及信息通讯管理；负责信息系统、通用平台建设、运维和升级等各环节的标准规范；\n3.编制信息化设备技术规程及规范，制定公司的有关技术标准，制订、指导、落实信息化设备、设施维修及维护方案。",1,"本科及以上","学士及以上","计算机科学与技术类、信息与通信工程、电子与通信工程、通信工程","西林县城"]
[24,"全州片区-广西桂水电力股份有限公司天湖发电分公司","24.人力资源岗","1.负责制定薪酬、福利待遇等薪资方案，负责公司员工每月工资、绩效、补助、加班等制表、发放工作；负责公司员工五险一金、企业年金的具体工作；\n2.配合主任负责制定公司绩效管理办法，并组织实施；负责办理员工退休、退休增资补差核算、移交社区管理等相关工作，负责军转干部管理具体工作；\n3.负责上报有关人事、劳资、薪酬方面的各种报表。",1,"本科及以上","学士及以上","经济学类、财政学类、审计学类相关专业","全州县城"]
[25,"荔浦片区-广西桂水电力股份有限公司荔浦发电分公司","25.人力资源岗","1.负责公司培训计划的制定，培训工作的组织实施；\n2.配合制定和执行人才工作目标，做好人才培养和人才梯队建设；\n3.负责管理和维护公司行政档案和员工人事档案，负责员工信息数据库的管理。",1,"本科及以上","学士及以上","人力资源管理专业、工商管理类","荔浦市区"]
[26,"岑溪片区-广西桂水电力股份有限公司岑溪发电分公司","26.信息技术管理岗","1.负责公司信息化建设相关规划、设计工作，维护和管理公司内部的信息系统，如OA系统、ERP系统等；\n2.负责集控中心及智能化电站电力通信及信息通讯管理；负责信息系统、通用平台建设、运维和升级等各环节的标准规范；\n3.编制信息化设备技术规程及规范，制定公司的有关技术标准，制订、指导、落实信息化设备、设施维修及维护方案。",1,"本科及以上","学士及以上","计算机科学与技术类、信息与通信工程、电子与通信工程、通信工程","岑溪市区"]
[27,"藤县片区-广西水利电业集团藤县发电分公司","27.信息技术管理岗","1.负责公司信息化建设相关规划、设计工作，维护和管理公司内部的信息系统，如OA系统、ERP系统等；\n2.负责集控中心及智能化电站电力通信及信息通讯管理；负责信息系统、通用平台建设、运维和升级等各环节的标准规范；\n3.编制信息化设备技术规程及规范，制定公司的有关技术标准，制订、指导、落实信息化设备、设施维修及维护方案。",1,"本科及以上","学士及以上","计算机科学与技术类专业；自动化、信息与通信工程、电子与通信工程、通信工程专业。","藤县县城"]
[28,"广西钦州琦泉生物质发电有限公司","28.锅炉运行值班岗","1.负责发电生产调整锅炉DCS控制系统、巡视、检查，维修等工作；\n2.认真记录班次工作记录和处理情况记录，对值班过程进行总结、分析和总结，为锅炉运行和维护提供参考依据。",2,"大专及以上","不限","能源动力及工程热物理类","广西钦州市大寺镇"]
[29,"广西钦州琦泉生物质发电有限公司","29.汽机运行值班岗","1.负责发电生产调整汽机DCS控制系统、巡视、检查，维修等工作，确保机组安全运行；\n2.认真记录班次工作记录和处理情况记录，对值班过程进行总结、分析和总结，为汽机运行和维护提供参考依据。",1,"大专及以上","不限","能源动力及工程热物理类","广西钦州市大寺镇"]
[30,"广西钦州琦泉生物质发电有限公司","30.燃料管理岗","1.负责燃料的采购计划制定、询价、招标、比选、合同签订等相关工作；\n2.跟踪燃料市场行情，及时调整采购计划，保证资源的及时供应和成本的合理控制；\n3.定期编制燃料采购的资金计划、资金台帐、费用计划等，及时处理燃料管理过程中的各种问题。",1,"大专及以上","不限","不限","广西钦州市大寺镇"]
[31,"恭城片区-广西平乐农投能源建设有限公司","31.燃气安全岗","1.负责安全信息的收集、汇总，并编制安全报表，负责安全生产文件和资料的整理归档工作；\n2.协助部门负责人，组织企业安健环标准体系建设、安全目标分解考核、安全监督检查和安全培训、急救援演练、调查安全事故等工作；\n3.组织本站人员遵守安全生产规章制度和操作规程,检查各岗位安全生产情况,制止和纠正违章行为。",1,"大专及以上","不限","安全科学与工程类","桂林市平乐县二塘镇"]
[32,"那坡片区-广西桂水电力股份有限公司那坡发电分公司","32.电站运行岗","1.对所管辖的设备安全，经济运行全面负责；\n2.掌握设备的运行情况，做到认真监视和调整，保证设备运行符合规程要求，使设备经常处于良好的运行状态；\n3.及时排除设备故障，处理事故，严格完成重大操作事项，保证运行安全。",1,"大专及以上","不限","电气、电子及自动化类、水利类、能源动力及工程热物理类","那坡县乡镇"]
[33,"宜州片区-广西桂水电力股份有限公司融水发电分公司","33.电站运行岗","1.对所管辖的设备安全，经济运行全面负责；\n2.掌握设备的运行情况，做到认真监视和调整，保证设备运行符合规程要求，使设备经常处于良好的运行状态；\n3.及时排除设备故障，处理事故，严格完成重大操作事项，保证运行安全。",1,"大专及以上","不限","电气、电子及自动化类、水利类、能源动力及工程热物理类","融水县乡镇"]
[34,"南宁明阳制糖有限责任公司","34.生产技术岗","1.负责公司仪器、仪表的维护、维修、巡检等工作，及时发现故障隐患并排除，确保生产的顺利进行；\n2.负责公司各车间仪器仪表的效验；\n3.负责各车间仪器、仪表、自控设备、DCS控制系统及相关技术资料档案的建立、维护及更新等工作。",1,"本科及以上","学士及以上","电气、电子及自动化类","江南区吴圩镇"]
[35,"南宁明阳制糖有限责任公司","35.制炼车间技术岗","1.负责生产工艺的指标跟踪，对生产指标出现异常情况及时查找原因，提出应对措施；\n2.跟踪设备安装质量及进度，协调解决项目实施及检修过程当中存在的问题，并负责协调和联络及其它日常工作；\n3.做工作总结，写报告、请示等文案。完成公司领导交办的其他工作任务。",3,"本科及以上","学士及以上","制糖工程、食品科学与工程类","江南区吴圩镇"]
[36,"南宁明阳制糖有限责任公司","36.压榨车间技术岗","1.负责公司各类机械设备的维护和技术管理工作，确保设备运转在良好的状态 ；\n2.参与公司各类机械设备的技术改造升级工作；\n3.爱岗敬业，维护公司利益，服从调度。完成公司领导交办的其他工作任务。",2,"本科及以上","学士及以上","机械类","江南区吴圩镇"]
[37,"南宁糖业宾阳大桥制糖有限责任公司","37.制炼生产岗","负责澄清、煮糖、分蜜机等岗位的生产操作、设备安装及维护保养。",6,"大专及以上","不限","食品科学与工程类","宾阳县大桥镇"]
[38,"南宁糖业宾阳大桥制糖有限责任公司","38.热能动力岗","负责锅炉、汽轮机等岗位的生产操作、设备安装及维护保养。",3,"大专及以上","不限","能源动力及工程热物理类，机械类","宾阳县大桥镇"]
[39,"南宁糖业宾阳大桥制糖有限责任公司","39.设备维护岗","负责对全厂的仪表设备进行安装、检查、保养和维护。",2,"大专及以上","不限","仪表仪器及测试技术类、电气、电子及自动化类","宾阳县大桥镇"]
[40,"南宁糖业宾阳大桥制糖有限责任公司","40.机械设备岗","负责所属岗位机械设备的运行、维护、保养等操作。",4,"大专及以上","不限","机械类","宾阳县大桥镇"]
[41,"南宁伶利制糖有限责任公司","41.动力热能技术岗","1.对动力车间工艺技术指标的执行情况进行检查监督、分析；\n2.对动力车间各设备安装、维修提供技术支持，并提供有关技术资料、图纸；\n3.负责动力车间设备台账管理和各种技术数据收集工作，指导各工段按一体化管理体系要求开展工作。",1,"大专及以上","不限","能源动力及工程热物理类，电气、电子及自动化类，机械类","青秀区伶俐镇"]
[42,"南宁伶利制糖有限责任公司","42.环保技术岗","1.负责污水处理设备、环境监测，烟气排放等工作；\n2.及时排除污水处理设备、装置运行中出现的缺陷故障，确保设备和装置正常运行，不影响正常的污水处理效能。",1,"大专及以上","不限","环境科学与工程类","青秀区伶俐镇"]
[43,"南宁伶利制糖有限责任公司","43.市场营销岗","1.负责购进物资的卸车、交接、清点、储存和保管工作，做好物资或设备验收的相关记录；\n2.负责根据采购清单核对设备或物资的规格型号、质量要求和采购数量，做好库存物资的盘点、保管和卫生工作；\n3.负责按领用程序办理物资的发放手续，根据物资采购及发放情况做好电脑账套的数据录入。",1,"大专及以上","不限","工商管理类","青秀区伶俐镇"]
[44,"南宁伶利制糖有限责任公司","44.仪表技术岗","1.负责仪表、电气技术管理工作；\n2.及时协调处理仪表在检修和运行时发生的技术问题；\n3.协助仪表工段制定每年的检修计划、仪表周期检定计划并编制实施方案。",1,"大专及以上","不限","仪表仪器及测试技术类、电气、电子及自动化类","青秀区伶俐镇"]
[45,"南宁伶利制糖有限责任公司","45.电气技术岗","1.负责参与管理、维护、检修、安装全公司所有电气设备、线路（包括照明线路）及附属设备，为电气设备安装、维修提供技术指导。\n2.负责所管辖范围设备巡回检查，处理出现的问题。\n3.具有电气自动化相关专业技术，有一定的解决问题、分析及解决电气问题的能力，持有电工操作证。                                          ",1,"大专及以上","不限","电气、电子及自动化类","南宁市青秀区伶俐镇"]
[46,"南宁伶利制糖有限责任公司","46.机械技术岗","1.对压榨车间工艺技术指标的执行情况进行检查监督、分析；\n2.对压榨车间各设备安装、维修提供技术支持，并提供有关技术资料、图纸；\n3.负责压榨车间设备台账管理和各种技术数据收集工作，指导各工段按一体化管理体系要求开展工作。",1,"大专及以上","不限","机械类","青秀区伶俐镇"]
[47,"南宁伶利制糖有限责任公司","47.制糖工艺技术岗","1.对制炼车间工艺技术指标的执行情况进行检查监督、分析；\n2.对制炼车间各设备安装、维修提供技术支持，并提供有关技术资料、图纸；\n3.负责制炼车间设备台账管理和各种技术数据收集工作，指导各工段按一体化管理体系要求开展工作。",2,"大专及以上","不限","食品科学与工程类","青秀区伶俐镇"]
[48,"南宁伶利制糖有限责任公司","48.人力资源岗","1、负责人事管理、薪酬福利的预算、核算、发放、统计等工作。                   2、协助企业培训管理工作，组织、协调、配合各部门开展各项员工培训，建立健全职工培训档案。          ",1,"大专及以上","不限","工商管理类","南宁市青秀区伶俐镇"]
[49,"南宁东江制糖有限责任公司","49.热工技术岗","1. 热能与动力工程相关专业，熟悉运用与热工相关知识、标准，熟悉燃烧、传热等相关专业知识；\n2.精通办公软件和制图软件； \n3. 有较强的沟通表达能力和团队协作能力。",2,"本科及以上","学士及以上","能源动力及工程热物理类，机械类","南宁东江制糖有限责任公司"]
[50,"南宁东江制糖有限责任公司","50.制糖技术岗","1.熟悉制糖生产要求，按工艺要求进行生产操作；\n2.严格执行公司的劳动考勤管理制度，服从上级领导的安排，完成领导交办的临时工作 ；\n3.按照要求对设备维护、清洁、保养。",3,"本科及以上","学士及以上","食品科学与工程类","南宁东江制糖有限责任公司"]
[51,"南宁东江制糖有限责任公司","51.电气自动化技术岗","1.负责变配电房，电气设备，供电线路等的运行维护；\n2.负责解决电气、设备用电故障、用电安全工作；\n3.负责设备运行日常检查，填写运行维护记录，用电耗能统计工作。",4,"本科及以上","学士及以上","电气、电子及自动化类","南宁东江制糖有限责任公司"]
[52,"南宁东江制糖有限责任公司","52.机械技术岗","1.协助制订生产设备有关规章制度和使用、维护保养的操作规程；\n2.协助机械设备的建档及档案治理工作，制定设备大修、中修作业规划；\n3.负责对生产设备的使用、日常保养和维护进展技术指导。",1,"本科及以上","学士及以上","机械类","南宁东江制糖有限责任公司"]
[53,"南宁东江制糖有限责任公司","53.纪检监察岗","1.协助落实纪检监察的日常工作，参与纪检监察和巡察的日常工作，配合做好各项准备，参与具体实施；\n2.负责对公司的重点人群、重点领域开展日常监督，协调推进“三不腐”体制机制建设，协助开展党风廉政建设责任落实情况的监督检查，督促检查公司相关业务部门重点领域落实廉洁风险防控措施；\n3.参与案件调查和编写初核报告，协助抓好巡察反馈意见的整改工作，完成领导临时交办的其他工作任务。",1,"本科及以上","学士及以上","法学类、审计学类、政治学类、中国汉语言文学及文秘类","南宁东江制糖有限责任公司"]
[54,"南宁云鸥物流股份有限公司","54.会计岗","1.负责账务处理，协助财务经理开展税务、成本、报表、费用等财务业务工作；                                                                                  2.负责财务资金计划、汇报每月执行情况及相关账务处理；                                                                   3.负责成本核算内容，归集成本费用，结转收入、成本进行纳税申报等工作。",1,"本科及以上","学士及以上","会计学类、工商管理类、统计学类","南宁市青秀区古城路10号"]
[55,"广西舒雅护理用品有限公司","55.会计岗","1.有扎实的会计基础，熟悉财务报表，熟练使用财务办公软件以及Excel等常用办公软件；\n2.对数据敏感，有良好的沟通协调能力，有较强的自学能力，责任心强，能吃苦耐劳，有上进心，品行端正，服从管理。",1,"本科及以上","学士及以上","会计学类、经济学类、金融学类","南宁里建"]
[56,"广西舒雅护理用品有限公司","56.生产技术岗","1.具有扎实的机械类专业理论知识，熟练使用CAD/CAXA等制图软件；\n2.负责制图画图及生产设备管理及维护，监控各仪器系统的运作，及时应对系统出现的异常情况，对生产过程中机械设备存在的问题提出改进意见。",1,"本科及以上","学士及以上","机械类","南宁里建"]
[57,"南宁侨虹新材料股份有限公司","57.生产技术岗","负责无尘纸生产操作、工艺执行及数据统计等工作，参与生产其他技术和管理工作。",1,"本科及以上","学士及以上","造纸或纺织轻工类专业","广西-东盟经济技术开发区"]
[58,"南宁侨虹新材料股份有限公司","58.工艺技术岗","参与新产品研发工作，负责统计和分析研发数据，负责收集和归档技术材料等。  ",1,"本科及以上","学士及以上","造纸或纺织轻工类专业","广西-东盟经济技术开发区"]
[59,"广西侨旺纸模制品股份有限公司","59.工业机器人管理岗","1.负责生产线现场机器人技术和管理工作，包括机器人操作、机器人故障诊断、现场软硬件设备的检修等；\n2.解决生产岗位在机器人技术方面疑难问题，为员工提供机器人的技术咨询；\n3.完成上级领导临时安排的其它相关工作。",3,"大专及以上","不限","自动化编程专业、机电一体化专业类专业","南宁市武鸣区东盟经济技术开发区武华大道9-1号"]
[60,"广西侨旺纸模制品股份有限公司","60.设备维修维护岗","1.协助设备主管做好公司各类机械设备的维护和技术管理工作；\n2.参与公司各类机械设备的技术改造升级工作；\n3.完成上级领导临时安排的其它相关工作。",3,"大专及以上","不限","机电一体化专业、机械制造专业、设备维修维护专业","南宁市武鸣区东盟经济技术开发区武华大道9-1号"]
[61,"广西侨旺纸模制品股份有限公司","61.电器维修维护岗","1.协助电气仪表主管做好电器仪表设备的维护和管理；\n2.参与建立电气仪表运行档案，图纸资料，及时对DCS、PLC系统软件、应用软件等进行备份更新，确保其完整、准确；\n3.完成上级领导临时安排的其它相关工作。",3,"大专及以上","不限","电气自动化专业、电气电仪专业","南宁市武鸣区东盟经济技术开发区武华大道9-1号"]
[62,"广西侨旺纸模制品股份有限公司","62.工艺技术岗","1、负责生产工艺的各种数据整理，为工艺改进提供数据基础；\n2、负责收集有关工艺技术资料并整理分类编目，妥善保管；\n3、负责生产工艺制定和工艺纪律执行情况的检查纠正，协助生产稳定生产工艺，针对生产出现的各种问题，提供持续技术改进意见。",1,"大专及以上","不限","制浆造纸专业","南宁市武鸣区东盟经济技术开发区武华大道9-1号"]
[63,"广西侨旺纸模制品股份有限公司","63.市场部业务员","1.开发和维护国内外客户，并与他们建立联系；\n2.与国内外客户保持密切沟通，了解客户需求，提供定制化的解决方案；\n3.完成上级领导临时安排的其它相关工作。",2,"本科及以上","不限","国际贸易、商务英语类专业","南宁市江南区长凯路19号"]
[64,"广西南糖市场开发有限公司","64.综合办公室专员岗","1.有文字功底，能独立撰写报告、总结、汇报、讲话稿、新闻报道等；                        \n2.负责公司党支部日常管理工作；     \n3.负责公司行政后勤工作。",1,"本科","学士","中国汉语言文学及文秘类、新闻传播学类、行政管理类","南宁市青秀区"]
[65,"广西南糖甘蔗现代化农业开发有限公司-明阳分公司","65.农业技术岗","1.协助种植组主管开展甘蔗种植发展、田间管护、技术指导、政策宣传、新品种的引进与推广；\n2.农业贷款的发放和回收；\n3.甘蔗种植补贴的初步审核和核查。",1,"大专及以上","不限","植物生产、保护及草学类，农业工程类","南宁市江南区"]
[66,"广西南糖甘蔗现代化农业开发有限公司-伶利分公司","66.农业技术岗","1.协助种植组主管开展甘蔗种植发展、田间管护、技术指导、政策宣传、新品种的引进与推广；\n2.农业贷款的发放和回收；\n3.甘蔗种植补贴的初步审核和核查。",1,"大专及以上","不限","植物生产、保护及草学类，农业工程类","南宁市青秀区"]
[67,"广西南糖甘蔗现代化农业开发有限公司-武鸣分公司","67.农业技术岗","1.协助种植组主管开展甘蔗种植发展、田间管护、技术指导、政策宣传、新品种的引进与推广；\n2.农业贷款的发放和回收；\n3.甘蔗种植补贴的初步审核和核查。",1,"大专及以上","不限","植物生产、保护及草学类，农业工程类","南宁市武鸣区"]
[68,"广西博庆食品有限公司","68.综合文秘岗","1.负责公司相关文件、信息的上传下达工作；\n2.负责各项材料、文书起草及归档管理；\n3.做好各类会议筹办、接待和其他内外行政事务的协调联络等工作。",1,"本科及以上","学士及以上","中国汉语言文学及文秘类","广西河池市宜州区"]
[69,"广西博庆食品有限公司-石别工厂","69.机电维修岗","1.负责全厂输电线路和用电设备维修运行、维护、保养及所管辖设备和环境的清洁卫生等工作；\n2.定期巡查，检查电气设施的运行情况，发现问题及时处理；\n3.对相关技术参数存档，确保技术参数维护、调整的可追溯性，如实填写设备运行等相关，做好交接班工作。",2,"大专及以上","不限","电气、电子及自动化类","广西河池市宜州区\n石别镇"]
[70,"广西博庆食品有限公司-石别工厂","70.仪表维修岗","1.负责全厂仪表的维修、维护及保养，巡回检查、卫生清扫、校验等工作；对故障仪表及时维修、调校并投运；并如实填写相关记录，做好交接班工作；\n2.负责对DCS和PLC系统进行定期清扫，对系统本身与仪表连接故障进行处理，对系统的调节参数进行设定；\n3.负责提出仪表备品、备件的需求计划和材料计划。",1,"大专及以上","不限","仪表仪器及测试技术类\n、电气、电子及自动化类","广西河池市宜州区\n石别镇"]
[71,"广西博庆食品有限公司-石别工厂","71.制炼煮糖岗","1.严格遵守操作规程，按照煮糖生产工艺与生产流程，合理使用原料、蒸汽及设备，尽量抽取汁汽煮糖，做到均衡生产，保证产品符合质量目标要求。 \n2.负责维护保养好所属设备、管道及阀门，发现问题及时处理或汇报班长，保证设备安全正常运行，杜绝各种跑糖事故的发生。\n3.认真填写生产原始记录（包括异常问题的处理情况）及做好交接班记录，做好交接班工作。",2,"大专及以上","不限","食品科学与工程类（制糖工程或制糖生产技术与管理专业）","广西河池市宜州区\n石别镇"]
[72,"广西博庆食品有限公司-博东工厂","72.农业技术员","1.负责实施甘蔗新技术及品种的试验、示范，筛选出适合本蔗区的甘蔗种植新技术及优良品种。\n2.负责甘蔗种植农艺性状（品种、种植技术及习惯等）的收集、整理、分析，提出种植技术、品种改良等方面的改进意见；对接执行食品质量体系相关工作。\n3.指导基层农务员、蔗管员掌握种蔗技术要点，解决生产中一般的技术问题（防虫、除草等），对涉农部门岗位人员、蔗管员和种植户开展相关甘蔗生产技术培训和指导，提高蔗区种蔗技术水平。",1,"大专及以上","不限","植物生产、保护及草学类；农林经济管理类","广西河池市金城江区东江镇"]
[73,"广西博庆食品有限公司-博东工厂","73.农业农务岗","1.协助做好公司驻乡镇甘蔗站的全面管理工作；协助组织实施甘蔗站年度农业工作计划，对农业部下达的甘蔗生产任务以及蔗区砍运服务工作生产目标负责任。\n2.协助对甘蔗站内勤、蔗管员进行管理，并督促、指导其完成工作任务并对其工作进行考核。\n3.完成上级领导交办的其他工作。",3,"大专及以上","不限","植物生产、保护及草学类、农林经济管理类","广西河池市金城江区东江镇"]
[74,"广西博庆食品有限公司-博东工厂","74.生产部工艺主管岗","1.根据工厂生产经营目标，协助生产部主管领导制定工厂的目标分解方案、生产工作计划，协助生产部主管领导解决生产过程中工艺存在的技术问题；监督和指导生产车间对生产工艺的执行情况。编写及制定工艺指标、生产检验计划、生产计划，统计及分析榨季期间各项生产数据，为调整生产提供数据支撑，编写各类生产工艺查定的方案及查定结果分析，为生产制定最佳工艺指标提供参考。负责关键工艺操作规程的员工培训工作。\n2.对公司提出新、改建项目，负责做出技术上的可行性工艺分析报告，会同生产部一起对图纸设计、实施方案等进行审核并负责项目工艺技术指导。\n3.完成上级领导交办的其他工作。",1,"本科及以上","不限","食品科学与工程类（制糖工程或制糖生产技术与管理）","广西河池市金城江区东江镇"]
[75,"广西博庆食品有限公司-博东工厂","75.压榨技术岗","1.负责按生产作业计划对压榨车间生产工艺技术执行情况予以必要的监督和指导，并且协调生产按计划实施；.协助车间主管抓好质量管理工作，提出质量改进措施和办法，参与组织开展产品质量攻关活动，不断提高车间的工作质量与产品质量；\n2.负责各零配件的图纸绘制；并指导生产设备安装、维修，对相关技术参数收集整理存档，确保技术参数维护、调整的可追溯性。\n3.完成上级领导交办的其他工作。",1,"大专及以上","不限","机械类、食品科学与工程类","广西河池市金城江区东江镇"]
[76,"广西博宣食品有限公司","76.综合文秘岗","1.协助主任处理日常行政管理事务；\n2.负责文书处理工作，会议准备、记录、文印工作，文件资料的保密、归档工作；\n3.负责公司行政公章、介绍信使用和保管，负责出具证明。",1,"本科及以上","学士及以上","中国汉语言文学及文秘类\n新闻传播学类","广西武宣县"]
[77,"广西博宣食品有限公司","77.农业技术岗","1.负责甘蔗新品种、新技术的引进和宣传、推广工作；\n2.从事各种甘蔗试验，认真学习甘蔗种植、栽培和管护新技术，并能对有关人员进行培训；\n3.负责片区甘蔗种植技术指导、甘蔗种植发展、原料蔗质量管理，及时掌握甘蔗的病虫害情报，甘蔗种植生产期间各种调查测量统计和分析等工作，并能提出相应的预防解决措施。",1,"大专及以上","不限","植物生产、保护及草学类\n林学及林业工程类\n生物科学及技术类\n农业工程类","广西武宣县"]
[78,"广西博宣食品有限公司","78.制炼车间工艺岗","1.负责按生产作业计划对制炼车间生产工艺技术执行情况予以必要的监督和指导，并且协调生产按计划实施；\n2.负责本车间的生产技术工作，提出质量改进措施和办法，参与组织开展产品质量攻关活动，不断提高车间的生产技术；\n3.榨季期间，负责车间的生产现场管理工作；检修期间，负责分管工段的现场管理工作。",1,"本科及以上","学士及以上","食品科学与工程类\n化工与制药技术类\n化学类","广西武宣县"]
[79,"广西博宣食品有限公司","79.仪表设备维护岗","1.负责标准计量器具的使用、维修、维护工作，认真做好量值传递工作，保证标准计量器具周期送检率及合格率达到规定要求；\n2.负责在用计量器具、仪表的检修、维护、校验等工作，确保仪器仪表正常运行；\n3.熟悉全厂在用计量器具的规程、性能及使用方法，并建立有相应的技术档案，了解与计量仪表有关的工艺操作条件。",1,"本科及以上","学士及以上","电气、电子及自动化类\n仪表仪器及测试技术类","广西武宣县"]
[80,"广西博华食品有限公司","80.纪检监察岗","1.负责对党风廉政工作进行监督；\n2.负责纪检相关材料整理、归档；\n3.负责纪检文件的上传下达及部门相关协作工作。",1,"本科及以上","学士及以上","中国汉语言文学及文秘类","广西来宾市象州县罗秀镇"]
[81,"广西博华食品有限公司","81.人力资源岗 ","1.负责员工薪酬核算、社会保险缴纳；\n2.负责协助部门人事招聘管理；\n3.负责员工考核数据整理及部门相关协作工作。",1,"本科及以上","学士及以上","会计学类","广西来宾市象州县罗秀镇"]
[82,"广西博华食品有限公司","82.电气技术岗","1.负责工厂电气维护、检修、安装等技术支持；\n2.负责工厂电气方面技术数据分析、提高电气设备运行安全率；\n3.负责工厂机电一体化设备性能技改提升及部门相关协作工作。",1,"本科及以上","学士及以上","电气、电子及自动化类","广西来宾市象州县罗秀镇"]
[83,"广西博华食品有限公司","83.动力热工技术岗","1.负责锅炉设备维护、检修、安装等技术支持；\n2.负责锅炉所属设备运行数据分析，提高热效能；\n3.负责锅炉设备技改提升及部门相关协作工作。",1,"本科及以上","学士及以上","机械类","广西来宾市象州县罗秀镇"]
[84,"广西博华食品有限公司","84.制糖技术岗","1.负责制糖工艺设备维护、检修、安装等技术支持；\n2.负责制糖工艺流程各环节的技术支持，统计分析生产指标数据，提高产糖率；\n3.负责制糖工艺设备技改提升及部门相关协作工作。",2,"本科及以上","学士及以上","食品科学与工程类","广西来宾市象州县罗秀镇"]
[85,"广西博冠环保制品有限公司","85.市场营销岗","1. 销售相关：负责公司产品销售推广、开拓新市场与新客户、签订执行跟踪销售合同、确保货款回收、完成销售任务和指标并汇报工作；\n2. 客户对接：与国外客户保持沟通、了解需求、提供产品解决方案、回复咨询疑问；\n3. 市场与团队：调研市场、分析趋势制定策略、协助参加展会等活动、培训指导销售团队。",2,"大专及以上","不限","市场营销、国际商务、国际市场营销","广西河池市宜州区洛东镇洛东工业园区"]
[86,"广西博冠环保制品有限公司","86.党建岗","1. 制度建设与文件管理：协助制定完善党建规章制度和流程并监督执行，负责党组织文件收发、登记、传阅、归档；\n2. 党建活动与党员管理：组织开展党建活动，包括策划、组织、宣传，协助做好党员教育管理，如发展党员、关系转接、信息维护；\n3. 信息宣传与其他工作：负责党建工作宣传报道，更新网站和宣传栏内容，收集整理党建信息数据，完成临时任务和配合同事。",1,"大专及以上","不限","政治学类、马克思主义理论类相关专业","广西河池市宜州区洛东镇洛东工业园区"]
[87,"广西博冠环保制品有限公司","87.纪检监察岗","1. 制度建设与监督执行：协助制定完善纪检监察工作制度、流程和规范，监督执行，参与公司内部各项监督检查；\n2. 调查与教育宣传：受理员工违规违纪举报投诉，调查核实并提建议，起草相关文件，开展廉政教育宣传活动；\n3. 其他工作：协助廉政风险防控，配合上级机关工作，整理保管资料，完成领导交办的其他纪检监察任务。",1,"大专及以上","不限","法学类、审计学类、政治学类、中国汉语言文学及文秘类","广西河池市宜州区洛东镇洛东工业园区"]
[88,"广西博冠环保制品有限公司","88.电气设备维护岗","1. 供电运行保障：负责公司发配电系统安全、经济可靠运行供电，执行值班长相关操作命令；\n2. 运行操作与数据记录：熟悉运行方式和原理，监视、操作、控制和调整设备，记录数据、抄表，执行相关制度，处理汇报问题；\n3. 设备维护：掌握设备参数和运行状况，处理供电事故，巡检设备，维护设备和环境卫生。",1,"大专及以上","不限","电气类、电气自动化类","广西河池市宜州区洛东镇洛东工业园区"]
[89,"广西博冠环保制品有限公司","89.本色浆岗","1. DCS系统操作与监控：负责本色浆工段DCS系统操作与监控，按工艺要求设定调整参数，保障生产稳定和产品质量；\n2. 异常处理与协调沟通：及时处理DCS系统异常并记录，与现场人员密切沟通、配合完成生产任务，填写运行记录和报表；\n3. 维护、安全与其他工作：协助维修人员保养DCS系统，遵守安全制度、落实安全措施，完成上级交办的其他工作。",1,"大专及以上","不限","轻工类、电气自动化类","广西河池市宜州区洛东镇洛东工业园区"]
[90,"广西博冠环保制品有限公司","90.化水/厌氧操作岗","1. 化水设备操作：负责化水设备日常操作，包括启动、停止和运行监控；\n2. 设备维护检查：进行化水设备日常维护保养，检查设备运行状况，如管道、阀门、仪表情况；\n3. 故障处理与厌氧操作：初步判断和处理化水设备故障，报告异常，协助维修；按流程控制厌氧反应器进料操作。",1,"大专及以上","不限","环境科学与工程类","广西河池市宜州区洛东镇洛东工业园区"]
[91,"广西博冠环保制品有限公司","91.机修岗","1. 设备维修与保养：负责生产设备日常维修，诊断故障并处理，制定并执行保养计划，保持设备良好状态；\n2. 预防性维护：分析设备运行数据、巡检，提前发现隐患并处理，预防潜在故障；\n3. 应急处理与协助安装：设备突发故障迅速抢修，调配资源保障生产，助新设备安装调试。",2,"大专及以上","不限","机械类","广西河池市宜州区洛东镇洛东工业园区"]
["合计",{"$nulls":3},{"$f":"SUM(E4:E94)","v":127}]

{"sheet":"Sheet1","index":1,"n_rows":65,"n_cols":10,"rows_kept":65}
[27,"藤县片区-广西水利电业集团藤县发电分公司","信息技术管理岗",".","信息技术管理岗",{"$f":"A1&D1&E1","v":"27.信息技术管理岗"},null,null,27,"锅炉运行值班岗"]
[28,"广西钦州琦泉生物质发电有限公司","27.锅炉运行值班岗",".","锅炉运行值班岗",{"$f":"A2&D2&E2","v":"28.锅炉运行值班岗"},null,null,28,"汽机运行值班岗"]
[29,"广西钦州琦泉生物质发电有限公司","28.汽机运行值班岗",".","汽机运行值班岗","29.汽机运行值班岗",null,null,29,"燃料管理岗"]
[30,"广西钦州琦泉生物质发电有限公司","29.燃料管理岗",".","燃料管理岗","30.燃料管理岗",null,null,30,"燃气安全岗"]
[31,"恭城片区-广西平乐农投能源建设有限公司","30.燃气安全岗",".","燃气安全岗","31.燃气安全岗",null,null,31,"电站运行岗"]
[32,"那坡片区-广西桂水电力股份有限公司那坡发电分公司","31.电站运行岗",".","电站运行岗","32.电站运行岗",null,null,32,"电站运行岗"]
[33,"宜州片区-广西桂水电力股份有限公司融水发电分公司","32.电站运行岗",".","电站运行岗","33.电站运行岗",null,null,33,"生产技术岗"]
[34,"南宁明阳制糖有限责任公司","33.生产技术岗",".","生产技术岗","34.生产技术岗",null,null,34,"制炼车间技术岗"]
[35,"南宁明阳制糖有限责任公司","34.制炼车间技术岗",".","制炼车间技术岗","35.制炼车间技术岗",null,null,35,"压榨车间技术岗"]
[36,"南宁明阳制糖有限责任公司","35.压榨车间技术岗",".","压榨车间技术岗","36.压榨车间技术岗",null,null,36,"制炼生产岗"]
[37,"南宁糖业宾阳大桥制糖有限责任公","36.制炼生产岗",".","制炼生产岗","37.制炼生产岗",null,null,37,"热能动力岗"]
[38,"南宁糖业宾阳大桥制糖有限责任公","37.热能动力岗",".","热能动力岗","38.热能动力岗",null,null,38,"设备维护岗"]
[39,"南宁糖业宾阳大桥制糖有限责任公","38.设备维护岗",".","设备维护岗","39.设备维护岗",null,null,39,"机械设备岗"]
[40,"南宁糖业宾阳大桥制糖有限责任公","39.机械设备岗",".","机械设备岗","40.机械设备岗",null,null,40,"动力热能技术岗"]
[41,"南宁伶利制糖有限责任公司","40.动力热能技术岗",".","动力热能技术岗","41.动力热能技术岗",null,null,41,"环保技术岗"]
[42,"南宁伶利制糖有限责任公司","41.环保技术岗",".","环保技术岗","42.环保技术岗",null,null,42,"市场营销岗"]
[43,"南宁伶利制糖有限责任公司","42.市场营销岗",".","市场营销岗","43.市场营销岗",null,null,43,"仪表技术岗"]
[44,"南宁伶利制糖有限责任公司","43.仪表技术岗",".","仪表技术岗","44.仪表技术岗",null,null,44,"电气技术岗"]
[45,"南宁伶利制糖有限责任公司","44.电气技术岗",".","电气技术岗","45.电气技术岗",null,null,45,"机械技术岗"]
[46,"南宁伶利制糖有限责任公司","45.机械技术岗",".","机械技术岗","46.机械技术岗",null,null,46,"制糖工艺技术岗"]
[47,"南宁伶利制糖有限责任公司","46.制糖工艺技术岗",".","制糖工艺技术岗","47.制糖工艺技术岗",null,null,47,"人力资源岗"]
[48,"南宁伶利制糖有限责任公司","47.人力资源岗",".","人力资源岗","48.人力资源岗",null,null,48,"热工技术岗"]
[49,"南宁东江制糖有限责任公司","48.热工技术岗",".","热工技术岗","49.热工技术岗",null,null,49,"制糖技术岗"]
[50,"南宁东江制糖有限责任公司","49.制糖技术岗",".","制糖技术岗","50.制糖技术岗",null,null,50,"电气自动化技术岗"]
[51,"南宁东江制糖有限责任公司","50.电气自动化技术岗",".","电气自动化技术岗","51.电气自动化技术岗",null,null,51,"机械技术岗"]
[52,"南宁东江制糖有限责任公司","51.机械技术岗",".","机械技术岗","52.机械技术岗",null,null,52,"纪检监察岗"]
[53,"南宁东江制糖有限责任公司","52.纪检监察岗",".","纪检监察岗","53.纪检监察岗",null,null,53,"会计岗"]
[54,"南宁云鸥物流股份有限公司","53.会计岗",".","会计岗","54.会计岗",null,null,54,"会计岗"]
[55,"广西舒雅护理用品有限公司","54.会计岗",".","会计岗","55.会计岗",null,null,55,"生产技术岗"]
[56,"广西舒雅护理用品有限公司","55.生产技术岗",".","生产技术岗","56.生产技术岗",null,null,56,"生产技术岗"]
[57,"南宁侨虹新材料股份有限公司","56.生产技术岗",".","生产技术岗","57.生产技术岗",null,null,57,"工艺技术岗"]
[58,"南宁侨虹新材料股份有限公司","57.工艺技术岗",".","工艺技术岗","58.工艺技术岗",null,null,58,"工业机器人管理岗"]
[59,"广西侨旺纸模制品股份有限公司","58.工业机器人管理岗",".","工业机器人管理岗","59.工业机器人管理岗",null,null,59,"设备维修维护岗"]
[60,"广西侨旺纸模制品股份有限公司","59.设备维修维护岗",".","设备维修维护岗",{"$f":"A34&D34&E34","v":"60.设备维修维护岗"},null,null,60,"电器维修维护岗"]
[61,"广西侨旺纸模制品股份有限公司","60.电器维修维护岗",".","电器维修维护岗","61.电器维修维护岗",null,null,61,"工艺技术岗"]
[62,"广西侨旺纸模制品股份有限公司","61.工艺技术岗",".","工艺技术岗","62.工艺技术岗",null,null,62,"市场部业务员"]
[63,"广西侨旺纸模制品股份有限公司","62.市场部业务员",".","市场部业务员","63.市场部业务员",null,null,63,"综合办公室专员岗"]
[64,"广西南糖市场开发有限公司","63.综合办公室专员岗",".","综合办公室专员岗","64.综合办公室专员岗",null,null,64,"农业技术岗"]
[65,"广西南糖甘蔗现代化农业开发有限公司-明阳分公司","64.农业技术岗",".","农业技术岗","65.农业技术岗",null,null,65,"农业技术岗"]
[66,"广西南糖甘蔗现代化农业开发有限公司-伶利分公司","65.农业技术岗",".","农业技术岗","66.农业技术岗",null,null,66,"农业技术岗"]
[67,"广西南糖甘蔗现代化农业开发有限公司-武鸣分公司","66.农业技术岗",".","农业技术岗","67.农业技术岗",null,null,67,"综合文秘岗"]
[68,"广西博庆食品有限公司","67.综合文秘岗",".","综合文秘岗","68.综合文秘岗",null,null,68,"机电维修岗"]
[69,"广西博庆食品有限公司-石别工厂","68.机电维修岗",".","机电维修岗","69.机电维修岗",null,null,69,"仪表维修岗"]
[70,"广西博庆食品有限公司-石别工厂","69.仪表维修岗",".","仪表维修岗","70.仪表维修岗",null,null,70,"制炼煮糖岗"]
[71,"广西博庆食品有限公司-石别工厂","70.制炼煮糖岗",".","制炼煮糖岗","71.制炼煮糖岗",null,null,71,"农业技术员"]
[72,"广西博庆食品有限公司-博东工厂","71.农业技术员",".","农业技术员","72.农业技术员",null,null,72,"农业农务岗"]
[73,"广西博庆食品有限公司-博东工厂","72.农业农务岗",".","农业农务岗","73.农业农务岗",null,null,73,"生产部工艺主管岗"]
[74,"广西博庆食品有限公司-博东工厂","73.生产部工艺主管岗",".","生产部工艺主管岗","74.生产部工艺主管岗",null,null,74,"压榨技术岗"]
[75,"广西博庆食品有限公司-博东工厂","74.压榨技术岗",".","压榨技术岗","75.压榨技术岗",null,null,75,"综合文秘岗"]
[76,"广西博宣食品有限公司","75.综合文秘岗",".","综合文秘岗","76.综合文秘岗",null,null,76,"农业技术岗"]
[77,"广西博宣食品有限公司","76.农业技术岗",".","农业技术岗","77.农业技术岗",null,null,77,"制炼车间工艺岗"]
[78,"广西博宣食品有限公司","77.制炼车间工艺岗",".","制炼车间工艺岗","78.制炼车间工艺岗",null,null,78,"仪表设备维护岗"]
[79,"广西博宣食品有限公司","78.仪表设备维护岗",".","仪表设备维护岗","79.仪表设备维护岗",null,null,79,"纪检监察岗"]
[80,"广西博华食品有限公司","79.纪检监察岗",".","纪检监察岗","80.纪检监察岗",null,null,80,"人力资源岗 "]
[81,"广西博华食品有限公司","80.人力资源岗 ",".","人力资源岗 ","81.人力资源岗 ",null,null,81,"电气技术岗"]
[82,"广西博华食品有限公司","81.电气技术岗",".","电气技术岗","82.电气技术岗",null,null,82,"动力热工技术岗"]
[83,"广西博华食品有限公司","82.动力热工技术岗",".","动力热工技术岗","83.动力热工技术岗",null,null,83,"制糖技术岗"]
[84,"广西博华食品有限公司","83.制糖技术岗",".","制糖技术岗","84.制糖技术岗",null,null,84,"市场营销岗"]
[85,"广西博冠环保制品有限公司","84.市场营销岗",".","市场营销岗","85.市场营销岗",null,null,85,"党建岗"]
[86,"广西博冠环保制品有限公司","85.党建岗",".","党建岗","86.党建岗",null,null,86,"纪检监察岗"]
[87,"广西博冠环保制品有限公司","86.纪检监察岗",".","纪检监察岗","87.纪检监察岗",null,null,87,"电气设备维护岗"]
[88,"广西博冠环保制品有限公司","87.电气设备维护岗",".","电气设备维护岗","88.电气设备维护岗",null,null,88,"本色浆岗"]
[89,"广西博冠环保制品有限公司","88.本色浆岗",".","本色浆岗","89.本色浆岗",null,null,89,"化水/厌氧操作岗"]
[90,"广西博冠环保制品有限公司","89.化水/厌氧操作岗",".","化水/厌氧操作岗","90.化水/厌氧操作岗",null,null,90,"机修岗"]
[91,"广西博冠环保制品有限公司","90.机修岗",".","机修岗","91.机修岗"]